bitfinex/quotes_ETHUSD_20260225
["timestamp","ask_amount","ask_price","bid_price","bid_amount"]
[1772040701728,0.45127153,2069.8,2069.3,0.001]
[1772040702028,0.45127153,2069.7,2069.3,0.001]
[1772040702194,5.89804747,2069.9,2068.7,6.25234873]
[1772040702195,0.45127153,2069.6,2068.7,6.25234873]
[1772040702525,1.20807963,2069.4,2068.5,6.25234873]
[1772040702887,1.20807963,2069.4,2068.2,0.001]
[1772040702888,2.33587608,2069.2,2068.2,0.001]
[1772040703091,8.15103643,2069.1,2068.2,0.001]
[1772040703302,7.70004747,2069.1,2068.2,0.001]
[1772040703523,6.34844,2069.0,2068.2,0.001]
[1772040703694,0.45039253,2068.9,2068.2,0.001]
[1772040703893,6.34844,2068.9,2068.2,0.001]
[1772040704105,0.45039253,2068.8,2068.2,0.001]
[1772040704306,5.89804747,2068.9,2068.2,0.001]
[1772040704515,1.20843,2068.8,2068.2,0.001]
[1772040704710,8.23392355,2068.6,2068.2,0.001]
[1772040704930,10.03592355,2068.5,2068.0,0.001]
[1772040705134,8.14991332,2068.4,2067.7,0.001]
[1772040705359,5.89804747,2068.3,2066.8,7.46194157]
[1772040705641,0.44902238,2068.2,2066.9,2.33587608]
[1772040705835,5.89804747,2068.6,2067.3,6.25234873]
[1772040706033,7.70004747,2068.4,2067.3,6.25234873]
[1772040706239,1.802,2068.3,2067.3,6.25234873]
[1772040706416,5.89804747,2068.1,2066.9,6.25234873]
[1772040706621,5.89804747,2068.1,2066.9,7.46186806]
[1772040706622,7.10694495,2068.0,2066.9,7.46186806]
[1772040707142,1.802,2067.9,2066.9,6.25234873]
[1772040707327,1.802,2067.9,2066.9,7.46188182]
[1772040707520,7.10694495,2068.0,2066.9,9.7977579]
[1772040707712,1.20889748,2068.0,2067.1,6.25234873]
[1772040708539,1.20889748,2068.0,2067.3,8.58822481]
[1772040708750,1.20872213,2068.3,2067.4,6.25234873]
[1772040709128,1.20872213,2068.3,2067.5,2.33587608]
[1772040709618,7.1067696,2068.3,2067.0,8.58822481]
[1772040709941,7.1067696,2068.3,2067.0,12.27768348]
[1772040709942,9.44264568,2068.3,2067.0,12.27768348]
[1772040710142,3.01072213,2068.3,2067.4,2.33587608]
[1772040710339,3.01072213,2068.3,2067.2,6.25234873]
[1772040710543,8.9087696,2068.3,2067.2,7.46169936]
[1772040710930,5.89804747,2068.2,2067.2,6.25234873]
[1772040711130,1.803,2068.2,2067.2,9.79758248]
[1772040711355,1.803,2068.2,2067.2,8.58822481]
[1772040711752,1.803,2068.2,2067.2,9.79758806]
[1772040712127,8.23392355,2068.1,2066.8,36.25234873]
[1772040712334,5.89804747,2068.0,2066.9,30.0]
[1772040712729,1.20895594,2067.9,2066.7,6.25234873]
[1772040713047,1.20895594,2067.9,2067.1,6.25234873]
[1772040713363,1.20895594,2067.9,2066.8,30.0]
[1772040713364,7.10700341,2067.9,2066.8,30.0]
[1772040713955,7.10700341,2067.9,2066.8,8.73334873]
[1772040714128,7.10700341,2067.9,2066.8,6.25234873]
[1772040714328,7.10700341,2067.9,2066.8,8.73434873]
[1772040714829,1.20895594,2067.9,2067.0,8.58822481]
[1772040715051,1.20895594,2067.9,2067.3,2.33587608]
[1772040715426,1.20895594,2067.9,2067.0,4.67175216]
[1772040715427,1.20895594,2067.9,2067.2,36.25234873]
[1772040715633,1.20895594,2067.9,2067.2,6.25234873]
[1772040715843,1.20895594,2067.9,2067.3,6.48641121]
[1772040716750,4.83582378,2068.0,2067.3,6.48641121]
[1772040716952,4.83582378,2068.0,2067.3,7.69570127]
[1772040717653,4.83582378,2068.0,2067.3,6.48641121]
[1772040718928,6.44947466,2067.9,2067.1,0.001]
[1772040719134,4.83582378,2068.0,2067.1,0.001]
[1772040719368,4.83582378,2068.0,2067.1,1.21041162]
[1772040719579,4.83582378,2068.0,2067.1,0.001]
[1772040720252,4.83582378,2068.0,2067.1,2.33687608]
[1772040720747,4.83582378,2068.0,2067.3,2.33587608]
[1772040720950,4.83582378,2068.0,2067.2,7.69577326]
[1772040721137,4.83582378,2068.0,2067.2,6.48641121]
[1772040721337,4.83582378,2068.0,2067.2,7.69576169]
[1772040721537,4.83582378,2068.0,2067.2,6.48641121]
[1772040722454,8.78535074,2067.7,2067.1,0.001]
[1772040722659,10.59035074,2067.7,2067.1,0.001]
[1772040722858,7.65872299,2067.4,2066.2,6.48641121]
[1772040723057,8.25447466,2067.3,2066.2,6.48641121]
[1772040723269,6.44947466,2067.2,2066.2,30.0]
[1772040723467,1.20924833,2067.4,2066.4,6.48641121]
[1772040723685,1.20924833,2067.4,2066.6,8.82228729]
[1772040723883,1.20924833,2067.4,2066.6,6.48641121]
[1772040725092,6.64114071,2067.8,2066.9,6.48641121]
[1772040725455,6.64114071,2067.8,2067.1,6.48641121]
[1772040726171,0.002,2068.1,2067.1,6.48641121]
[1772040726488,1.20889748,2068.0,2067.3,2.33587608]
[1772040726677,1.20889748,2068.0,2067.0,4.67175216]
[1772040726678,7.65837214,2068.0,2067.0,30.0]
[1772040726875,6.44947466,2067.8,2066.6,8.82228729]
[1772040727069,1.20913136,2067.6,2066.7,11.058]
[1772040727271,1.20913136,2067.6,2066.7,6.912]
[1772040727789,9.9944821,2067.6,2066.2,6.48641121]
[1772040727961,6.44947466,2067.5,2066.3,30.0]
[1772040728483,1.20913136,2067.6,2066.7,2.33587608]
[1772040728789,3.01413136,2067.6,2066.6,6.48641121]
[1772040728958,9.46360602,2067.6,2066.4,2.33587608]
[1772040729388,0.44882752,2067.5,2066.4,3.54570628]
[1772040729594,9.46360602,2067.6,2066.4,4.81887608]
[1772040729777,9.23416827,2067.5,2066.2,7.69635241]
[1772040729960,8.78535074,2067.5,2066.3,2.483]
[1772040730461,0.44961559,2067.4,2066.8,0.001]
[1772040730660,6.45147466,2067.4,2066.8,0.001]
[1772040731067,1.20936532,2067.2,2066.5,0.001]
[1772040731370,0.45026882,2067.1,2066.5,0.001]
[1772040731703,3.01536532,2067.2,2066.1,0.001]
[1772040731704,6.44947466,2066.9,2066.1,0.001]
[1772040731861,6.44947466,2066.6,2066.1,0.001]
[1772040732059,0.45027559,2066.5,2065.8,0.001]
[1772040732263,0.7,2066.9,2065.4,0.001]
[1772040732264,6.44947466,2066.3,2065.4,0.001]
[1772040732571,0.7,2066.9,2065.4,0.001]
[1772040732572,1.807,2066.2,2065.4,6.48741121]
[1772040732777,0.45064828,2066.1,2065.4,6.48741121]
[1772040732978,0.45067492,2066.0,2065.4,0.001]
[1772040733182,1.21000919,2066.1,2065.4,0.001]
[1772040733365,0.4503583,2066.0,2065.4,0.001]
[1772040733566,1.806,2066.0,2065.4,0.001]
[1772040734094,1.21000919,2066.1,2065.4,0.001]
[1772040734298,1.807,2066.0,2065.4,0.001]
[1772040734497,1.21000919,2066.1,2065.4,0.001]
[1772040734792,3.01700919,2066.1,2065.3,8.81932551]
[1772040734970,3.01700919,2066.1,2065.4,30.0]
[1772040735683,3.01700919,2066.1,2065.1,0.001]
[1772040736076,1.21000919,2066.1,2065.1,0.001]
[1772040736273,1.807,2066.0,2065.1,0.001]
[1772040736475,6.44947466,2065.9,2065.1,0.001]
[1772040736967,6.44947466,2065.8,2065.1,0.001]
[1772040737181,6.44947466,2065.7,2064.7,30.0]
[1772040737973,1.21030209,2065.6,2064.6,6.48641121]
[1772040738169,1.21030209,2065.6,2064.3,8.13087194]
[1772040738170,6.44947466,2065.3,2064.3,0.001]
[1772040738497,6.89819371,2065.2,2064.3,0.001]
[1772040738710,6.44947466,2065.0,2064.1,0.001]
[1772040738871,6.44947466,2064.8,2064.1,0.001]
[1772040739072,8.25547466,2065.2,2064.1,7.69859097]
[1772040739467,8.25547466,2065.2,2064.1,6.48741121]
[1772040739701,6.44947466,2065.1,2064.1,0.001]
[1772040740180,6.44947466,2064.9,2064.1,0.001]
[1772040740565,1.806,2064.8,2064.1,0.001]
[1772040740814,1.806,2064.8,2063.6,6.48641121]
[1772040740815,6.44947466,2064.8,2063.6,6.48641121]
[1772040740973,6.44947466,2064.6,2063.5,8.589]
[1772040741307,6.44947466,2064.6,2063.4,27.43584]
[1772040741501,1.807,2064.5,2063.5,6.48641121]
[1772040741807,1.807,2064.5,2063.6,27.43584]
[1772040742186,7.66006978,2065.1,2063.8,6.48641121]
[1772040742435,9.46606978,2065.1,2064.0,27.43584]
[1772040742595,3.01659512,2065.1,2064.2,27.43584]
[1772040743198,1.21059512,2065.1,2064.2,27.43584]
[1772040743578,0.7,2064.9,2064.2,0.001]
[1772040743795,0.702,2064.9,2064.2,0.001]
[1772040744202,1.21077101,2064.8,2064.2,0.001]
[1772040744576,1.21077101,2064.8,2064.0,10.61359889]
[1772040744577,6.44947466,2064.7,2064.0,0.001]
[1772040745101,3.01677101,2064.8,2064.0,1.21223786]
[1772040745302,3.01677101,2064.8,2064.1,27.43584]
[1772040745506,1.21077101,2064.8,2064.1,27.43584]
[1772040745800,1.21077101,2064.8,2064.0,0.001]
[1772040745801,7.31459884,2064.8,2064.0,0.001]
[1772040746000,11.19655585,2064.7,2064.0,0.001]
[1772040746170,1.2108883,2064.6,2064.0,0.001]
[1772040747483,1.21082889,2064.8,2064.0,0.001]
[1772040747693,0.002,2064.9,2064.3,33.46169324]
[1772040748000,1.21271306,2064.9,2064.4,3.314]
[1772040748303,1.21271306,2064.9,2064.1,2.50478462]
[1772040748304,0.002,2064.9,2064.1,3.71594454]
[1772040748479,0.002,2064.9,2064.3,27.43584]
[1772040748802,0.002,2064.9,2064.0,0.001]
[1772040749113,6.10582783,2064.9,2064.0,0.001]
[1772040749401,0.002,2064.9,2064.0,1.21223323]
[1772040749939,6.10582783,2064.9,2064.0,0.001]
[1772040750409,1.21077101,2064.8,2064.0,0.001]
[1772040750585,1.21077101,2064.8,2063.7,0.001]
[1772040750586,6.10382783,2064.6,2063.7,0.001]
[1772040750796,7.91282783,2064.6,2063.7,0.001]
[1772040751105,6.10382783,2064.6,2063.7,1.21241273]
[1772040752310,6.10382783,2064.6,2063.7,0.001]
[1772040752603,1.21094696,2064.5,2063.7,0.001]
[1772040753811,1.21094696,2064.5,2063.8,2.45]
[1772040754013,1.21094696,2064.5,2063.7,0.001]
[1772040754601,10.8216237,2064.6,2063.7,0.001]
[1772040755807,5.97783586,2064.3,2063.7,0.001]
[1772040756005,10.8216237,2064.6,2063.7,0.001]
[1772040756207,1.807,2064.3,2063.7,0.001]
[1772040756410,1.807,2064.3,2064.0,0.001]
[1772040756607,1.21112295,2064.2,2063.7,0.001]
[1772040757008,1.21112295,2064.2,2063.8,0.001]
[1772040757319,3.28572802,2064.0,2063.7,0.001]
[1772040757516,9.26356388,2064.0,2063.5,0.001]
[1772040757716,5.97783586,2064.0,2063.5,0.001]
[1772040758085,5.97783586,2064.0,2062.9,6.00513729]
[1772040758318,5.97783586,2064.0,2062.9,7.21702333]
[1772040758814,1.21129899,2063.9,2062.9,7.21702333]
[1772040759194,1.21129899,2063.9,2063.1,6.00513729]
[1772040760233,5.97783586,2063.4,2062.7,2.23769575]
[1772040760391,5.97783586,2063.4,2062.5,3.44981668]
[1772040760592,1.21129899,2063.9,2062.8,6.00513729]
[1772040760903,0.44933658,2063.8,2062.8,6.00513729]
[1772040761104,9.00213485,2063.9,2062.8,6.00513729]
[1772040761301,3.28572802,2063.7,2062.7,6.00513729]
[1772040761618,5.97783586,2063.8,2062.7,6.00513729]
[1772040761819,0.44979728,2063.7,2062.7,6.00513729]
[1772040762025,5.97783586,2063.8,2062.7,6.00513729]
[1772040762228,0.4499456,2063.7,2062.7,6.00513729]
[1772040762520,5.97783586,2063.8,2062.7,6.00513729]
[1772040762823,1.21147509,2063.6,2062.9,6.00513729]
[1772040762994,1.21147509,2063.6,2062.7,4.71469575]
[1772040763201,7.18931095,2063.6,2062.7,2.23769575]
[1772040763517,5.97783586,2063.4,2062.3,2.23769575]
[1772040763712,1.814,2063.3,2062.3,2.23769575]
[1772040764017,5.97783586,2063.4,2062.3,2.23769575]
[1772040764333,1.813,2063.3,2062.4,6.00513729]
[1772040764519,1.813,2063.3,2062.5,6.00513729]
[1772040764828,1.21170996,2063.2,2062.5,9.45493848]
[1772040764997,1.21170996,2063.2,2062.5,8.24283304]
[1772040765200,1.21170996,2063.2,2062.6,6.00513729]
[1772040765698,4.84593241,2063.6,2062.6,8.24283304]
[1772040766224,0.7,2063.4,2062.6,8.24283304]
[1772040766794,1.21165123,2063.3,2062.6,9.4548513]
[1772040767028,1.21165123,2063.3,2062.6,2.23769575]
[1772040767325,1.21165123,2063.3,2062.5,8.24283304]
[1772040767831,7.18948709,2063.3,2062.4,2.23769575]
[1772040768034,6.42853309,2063.2,2062.2,2.23769575]
[1772040768327,6.42853309,2063.1,2062.1,8.24283304]
[1772040768630,0.45069723,2063.0,2062.1,6.00513729]
[1772040768802,1.21188617,2062.9,2062.2,6.00513729]
[1772040769127,1.21165123,2063.3,2062.4,6.00513729]
[1772040769941,9.71416546,2063.2,2062.2,2.23769575]
[1772040770136,0.45060158,2063.1,2062.3,0.001]
[1772040770306,5.97783586,2063.0,2061.9,8.24283304]
[1772040770509,1.81,2063.1,2062.0,8.24283304]
[1772040770839,1.21188617,2062.9,2062.0,6.00613729]
[1772040771331,1.91188617,2062.9,2062.0,6.00613729]
[1772040771899,3.72188617,2062.9,2062.0,6.00613729]
[1772040772113,1.91188617,2062.9,2062.0,7.21854696]
[1772040773322,1.91188617,2062.9,2062.0,0.001]
[1772040773823,5.97783586,2062.8,2062.0,0.001]
[1772040774214,7.78683586,2062.8,2062.0,0.001]
[1772040774926,1.21200368,2062.7,2062.0,0.001]
[1772040775101,1.20870368,2062.7,2062.0,0.001]
[1772040776239,1.20870368,2062.7,2062.0,6.23307105]
[1772040777330,4.84801473,2062.8,2062.0,7.44544714]
[1772040778160,1.21147509,2063.6,2062.5,33.66791105]
[1772040778328,0.45013899,2063.5,2062.5,8.70207105]
[1772040778639,6.16779698,2063.5,2062.5,8.70307105]
[1772040778940,1.21147509,2063.6,2062.6,6.23207105]
[1772040779160,1.21118162,2064.1,2062.9,21.68807105]
[1772040779310,0.45040433,2064.0,2063.0,1.21182743]
[1772040779509,0.45040433,2063.9,2063.0,1.21182743]
[1772040779836,7.3789786,2064.1,2063.0,7.44389848]
[1772040780159,0.45034792,2064.0,2063.2,13.735]
[1772040780459,0.45059424,2063.9,2063.2,6.23207105]
[1772040780611,1.21307472,2064.3,2063.8,5.176]
[1772040780808,1.21307472,2064.3,2063.5,2.23769575]
[1772040781033,1.21307472,2064.3,2063.4,2.23769575]
[1772040781331,0.45063367,2064.2,2063.3,7.44368843]
[1772040781533,0.002,2064.3,2063.3,7.44368843]
[1772040781844,0.45061645,2064.2,2063.3,9.68138418]
[1772040782015,0.45062246,2064.1,2063.2,2.23769575]
[1772040782217,9.455525,2064.3,2063.2,2.23769575]
[1772040782439,0.45076634,2064.2,2063.2,2.23769575]
[1772040782651,0.45076634,2064.1,2063.2,2.23769575]
[1772040782819,9.455525,2064.3,2063.2,2.23769575]
[1772040783022,0.002,2063.8,2063.2,2.23769575]
[1772040783334,0.002,2063.8,2063.2,3.44936088]
[1772040783513,0.002,2063.8,2063.2,2.23769575]
[1772040783707,0.002,2063.8,2063.2,3.44939797]
[1772040784344,0.002,2063.8,2063.4,2.23769575]
[1772040785518,0.002,2063.8,2063.5,1.2115338]
[1772040785854,0.002,2063.8,2063.3,2.23769575]
[1772040786058,0.002,2063.8,2063.1,4.59652754]
[1772040786059,0.002,2063.8,2063.2,4.71069575]
[1772040786221,0.002,2063.8,2062.9,2.23769575]
[1772040786222,0.45126154,2063.7,2062.9,2.23769575]
[1772040786412,0.45126154,2063.6,2062.8,2.23769575]
[1772040786748,6.16979698,2063.8,2062.8,2.23769575]
[1772040786749,0.45129347,2063.5,2062.8,2.23769575]
[1772040786919,6.16979698,2063.8,2062.8,2.23769575]
[1772040787114,6.61909071,2063.7,2062.8,2.23769575]
[1772040787327,0.45129373,2063.6,2062.8,2.23769575]
[1772040787535,1.2115338,2063.5,2062.8,2.23769575]
[1772040787745,1.2115338,2063.5,2062.7,3.44968918]
[1772040787951,1.2115338,2063.5,2062.7,2.23769575]
[1772040787952,7.37933078,2063.5,2062.7,2.23769575]
[1772040788151,3.28572802,2063.2,2062.4,2.23769575]
[1772040788320,0.45141499,2063.1,2062.3,2.23869575]
[1772040788522,6.61921197,2063.1,2062.3,0.001]
[1772040788719,0.45141499,2063.0,2062.3,0.001]
[1772040788929,9.90493999,2062.9,2062.3,0.001]
[1772040789131,6.61921197,2062.8,2061.8,0.001]
[1772040789345,0.45141499,2062.7,2061.8,0.001]
[1772040789649,1.21206244,2062.6,2061.8,0.001]
[1772040790023,0.45164777,2062.5,2061.8,0.001]
[1772040790254,1.21206244,2062.6,2061.8,0.001]
[1772040790554,1.21206244,2062.6,2061.8,1.21352222]
[1772040791553,0.45152319,2062.5,2061.8,0.001]
[1772040791762,11.01604676,2062.7,2061.8,0.001]
[1772040792066,0.45148644,2062.6,2061.8,0.001]
[1772040792261,11.01604676,2062.7,2061.8,0.001]
[1772040792476,0.4514143,2062.6,2061.8,0.001]
[1772040792665,0.45144833,2062.5,2061.8,0.001]
[1772040792869,0.45144833,2062.4,2061.8,0.001]
[1772040793032,6.16779698,2062.6,2061.8,0.001]
[1772040793237,6.61924632,2062.5,2061.8,0.001]
[1772040793454,0.45144934,2062.4,2061.8,0.001]
[1772040793763,8.1339778,2062.7,2061.8,0.001]
[1772040793764,7.37985942,2062.6,2061.8,0.001]
[1772040794075,4.84824978,2062.7,2061.8,0.001]
[1772040794076,1.21204713,2062.7,2061.8,0.001]
[1772040794234,1.21204713,2062.7,2061.8,2.469]
[1772040794434,1.21204713,2062.7,2062.0,0.001]
[1772040794730,0.45124053,2062.6,2062.0,0.001]
[1772040794936,1.21204713,2062.7,2062.0,0.001]
[1772040796164,0.45115501,2062.6,2062.0,0.001]
[1772040796370,1.21204713,2062.7,2062.0,0.001]
[1772040798263,1.21165123,2063.3,2062.2,6.23207105]
[1772040798468,1.21165123,2063.3,2062.4,6.23207105]
[1772040798644,3.01863441,2063.4,2062.5,27.43584]
[1772040798880,3.01863441,2063.4,2062.5,6.23207105]
[1772040799280,0.45095575,2063.3,2062.5,6.23207105]
[1772040799485,3.01863441,2063.4,2062.5,6.23207105]
[1772040799801,1.213506,2063.6,2062.7,2.35322331]
[1772040800095,0.002,2063.6,2062.9,1.21188617]
[1772040800500,0.002,2063.6,2063.0,27.43584]
[1772040800794,0.002,2063.6,2063.0,6.23207105]
[1772040800977,0.002,2063.6,2063.0,8.69407105]
[1772040801172,0.002,2063.6,2063.1,6.23207105]
[1772040801886,0.002,2063.8,2063.1,6.23207105]
[1772040802092,1.21336718,2063.8,2063.1,6.23207105]
[1772040802296,0.002,2064.0,2063.3,6.23207105]
[1772040802592,0.002,2064.0,2063.4,27.43584]
[1772040802796,0.002,2064.0,2063.4,2.463]
[1772040803100,0.002,2064.0,2063.3,11.04929436]
[1772040803310,0.002,2064.0,2063.4,27.43584]
[1772040803477,0.002,2064.0,2063.6,2.35322331]
[1772040804393,0.002,2064.0,2063.8,1.21135768]
[1772040805483,0.002,2064.5,2063.8,1.21135768]
[1772040808083,0.002,2064.5,2063.8,7.31017593]
[1772040808412,0.002,2064.8,2064.2,8.45204156]
[1772040808700,0.002,2064.8,2064.3,1.21106428]
[1772040809386,0.002,2065.1,2064.5,8.45204156]
[1772040809583,0.002,2065.4,2064.7,27.43584]
[1772040809787,1.21243283,2065.4,2064.8,2.469]
[1772040810035,1.21243283,2065.4,2064.7,6.09881825]
[1772040810204,1.21243283,2065.4,2064.8,2.469]
[1772040810377,0.002,2065.4,2064.8,2.469]
[1772040810574,0.002,2065.4,2064.9,1.21071238]
[1772040811103,0.002,2065.4,2064.8,3.67972757]
[1772040811496,0.002,2065.4,2064.9,33.53465825]
[1772040811810,1.21022587,2065.8,2065.1,8.45204156]
[1772040812792,6.63885596,2066.2,2065.1,8.45204156]
[1772040812793,1.21000919,2066.1,2065.2,3.6815365]
[1772040813102,1.21000919,2066.1,2065.2,9.71755193]
[1772040813289,1.21000919,2066.1,2065.3,33.47185543]
[1772040813482,7.60955947,2066.5,2065.5,6.03601543]
[1772040813682,6.39978449,2066.1,2065.0,3.466]
[1772040814310,6.39978449,2066.4,2065.2,8.38923874]
[1772040814500,6.39978449,2066.3,2065.0,27.43584]
[1772040814680,6.39978449,2066.3,2065.1,2.471]
[1772040815138,6.39978449,2066.3,2065.1,3.68156454]
[1772040815139,7.60973512,2066.2,2065.1,3.68156454]
[1772040815423,7.60973512,2066.2,2065.1,3.68159377]
[1772040815612,6.39978449,2066.1,2065.1,3.68159377]
[1772040817115,1.21006776,2066.0,2065.1,3.68159377]
[1772040817487,1.21006776,2066.0,2065.2,2.35322331]
[1772040818390,1.21003033,2066.1,2065.2,8.38923874]
[1772040819120,1.21003033,2066.1,2065.3,1.21047789]
[1772040820535,1.21003033,2066.1,2065.2,7.24650918]
[1772040820732,1.21003033,2066.1,2065.3,2.468]
[1772040821610,0.002,2065.9,2065.3,2.468]
[1772040821921,0.002,2065.9,2065.2,7.24752039]
[1772040821922,6.40178449,2065.9,2065.2,0.001]
[1772040822813,6.39978449,2065.8,2065.2,0.001]
[1772040823199,7.61002799,2065.7,2065.2,0.001]
[1772040823714,6.39978449,2065.6,2065.0,0.001]
[1772040825209,1.2102435,2065.7,2065.0,0.001]
[1772040828632,7.61002799,2065.7,2065.0,0.001]
[1772040829615,6.39978449,2065.4,2065.0,0.001]
[1772040829822,6.39978449,2065.3,2064.7,0.001]
[1772040831646,1.21047789,2065.3,2064.7,0.001]
[1772040832018,1.2102435,2065.7,2064.9,8.38923874]
[1772040832444,1.2102435,2065.7,2064.9,6.03601543]
[1772040834147,0.002,2065.9,2065.1,0.001]
[1772040834321,0.002,2065.5,2065.1,0.001]
[1772040835927,0.002,2065.7,2065.1,6.08530984]
[1772040836526,0.002,2065.7,2065.2,1.2105365]
[1772040836749,0.002,2065.7,2065.1,1.21159473]
[1772040837134,0.002,2065.7,2065.1,0.001]
[1772040837344,0.45197862,2065.6,2065.1,0.001]
[1772040837558,0.002,2065.7,2065.1,0.001]
[1772040837729,0.45197856,2065.6,2065.1,0.001]
[1772040837928,0.002,2065.7,2065.1,0.001]
[1772040838227,0.45198153,2065.6,2065.1,0.001]
[1772040838430,0.45198153,2065.5,2065.1,0.001]
[1772040838636,0.002,2065.7,2065.1,0.001]
[1772040838951,1.21036068,2065.5,2065.1,0.001]
[1772040841054,0.002,2065.7,2065.1,6.08530984]
[1772040841233,0.002,2065.7,2065.3,2.35322331]
[1772040842632,1.21224586,2065.7,2065.1,0.001]
[1772040842837,6.37554317,2065.6,2065.1,0.001]
[1772040843052,1.21041928,2065.4,2065.1,0.001]
[1772040843738,7.13332981,2065.6,2065.1,0.001]
[1772040843934,4.84301894,2065.7,2065.1,0.001]
[1772040843935,0.45262273,2065.5,2065.1,0.001]
[1772040844125,0.002,2065.7,2065.1,6.08530984]
[1772040844327,0.45256974,2065.6,2065.1,6.08530984]
[1772040844561,0.002,2065.7,2065.1,6.05867182]
[1772040844760,0.45256678,2065.6,2065.1,6.05867182]
[1772040845061,0.002,2065.7,2065.2,1.2105365]
[1772040845559,0.002,2065.9,2065.3,6.08430984]
[1772040845935,0.002,2066.1,2065.5,8.43753315]
[1772040846457,0.002,2066.1,2065.5,6.08430984]
[1772040847160,0.002,2066.1,2065.6,1.21030209]
[1772040849055,0.002,2065.7,2065.6,1.21030209]
[1772040849265,0.002,2066.0,2065.6,1.21030209]
[1772040849828,0.002,2066.1,2065.7,2.46]
[1772040850049,5.92300666,2067.0,2066.1,2.35322331]
[1772040850260,1.2096029,2066.8,2066.1,2.35322331]
[1772040851466,7.13231348,2067.3,2066.4,2.35322331]
[1772040851646,0.45121711,2067.2,2066.4,2.35322331]
[1772040851836,0.45121711,2067.1,2066.4,2.35322331]
[1772040852030,7.13231348,2067.3,2066.4,2.35322331]
[1772040852250,0.45116776,2067.2,2066.5,6.08430984]
[1772040852451,1.20930682,2067.3,2066.5,6.08430984]
[1772040853633,4.8390032,2067.4,2065.8,1.21017808]
[1772040853634,5.92300666,2066.9,2065.8,1.21017808]
[1772040853841,5.92300666,2066.7,2065.6,9.75356863]
[1772040855132,5.92300666,2066.7,2065.8,8.43753315]
[1772040855734,7.13269677,2066.7,2065.9,1.21012633]
[1772040856962,5.92300666,2066.7,2065.9,1.21012633]
[1772040857258,7.13268037,2066.7,2065.9,1.21012633]
[1772040857458,7.13268037,2066.7,2065.9,0.94595333]
[1772040858858,1.20967371,2066.7,2065.9,0.94595333]
[1772040859060,1.20946893,2067.1,2066.4,2.35322331]
[1772040859245,1.20946893,2067.1,2066.3,2.458]
[1772040859631,7.13247559,2067.1,2066.3,2.458]
[1772040860077,7.13247559,2067.1,2065.9,9.28576443]
[1772040860268,7.13260604,2066.8,2066.2,2.458]
[1772040860665,7.13260604,2066.8,2065.9,10.9247789]
[1772040860666,7.13260604,2066.8,2066.0,1.2100457]
[1772040861287,0.002,2066.5,2066.0,7.29435554]
[1772040861496,0.002,2066.5,2066.0,2.457]
[1772040861639,5.92500666,2066.5,2065.7,1.21024181]
[1772040862036,5.92500666,2066.5,2065.6,7.297974]
[1772040862037,5.92500666,2066.5,2065.6,9.75157143]
[1772040862640,1.20983352,2066.4,2065.6,9.75157143]
[1772040863444,1.20983352,2066.4,2065.7,2.457]
[1772040863644,7.13284018,2066.4,2065.4,2.25550126]
[1772040863843,7.13284018,2066.4,2065.3,12.00824249]
[1772040864044,5.92300666,2066.2,2065.3,9.75274123]
[1772040864260,5.92300666,2066.2,2065.3,12.00824249]
[1772040865372,1.20983352,2066.4,2065.7,9.36401374]
[1772040865556,1.20983352,2066.4,2065.6,5.746]
[1772040865755,1.20983352,2066.4,2065.5,12.897]
[1772040866151,1.20983352,2066.4,2065.5,15.15250126]
[1772040866475,1.20983352,2066.4,2065.6,2.458]
[1772040867377,1.20983352,2066.4,2065.6,12.399]
[1772040867586,1.20983352,2066.4,2065.6,9.134]
[1772040867769,1.20983352,2066.4,2065.6,2.458]
[1772040868459,1.20983352,2066.4,2065.6,8.5857028]
[1772040868857,1.20983352,2066.4,2065.7,2.458]
[1772040870049,1.20983352,2066.4,2065.8,1.21018491]
[1772040870380,7.33897182,2066.5,2065.8,1.21018491]
[1772040870545,1.797,2066.7,2065.8,1.21018491]
[1772040870546,0.002,2066.7,2066.0,6.1277028]
[1772040870751,0.002,2066.7,2066.0,8.38320406]
[1772040870955,0.002,2066.7,2066.1,2.25550126]
[1772040871272,0.002,2066.7,2065.8,7.76959271]
[1772040871273,0.45149619,2066.6,2065.8,2.25550126]
[1772040871465,0.45149619,2066.6,2065.6,7.00978775]
[1772040871466,6.57865091,2066.5,2065.6,3.66927417]
[1772040871668,6.57865091,2066.4,2065.6,3.66927417]
[1772040871870,0.45149619,2066.3,2065.6,3.66927417]
[1772040872172,1.66142448,2066.3,2065.6,3.66927417]
[1772040872371,1.20992829,2066.3,2065.6,3.66927417]
[1772040872676,1.20992829,2066.3,2065.6,9.55369502]
[1772040872872,7.33702471,2066.4,2065.6,11.80919628]
[1772040873561,7.33702471,2066.4,2065.7,2.46]
[1772040873960,7.33702471,2066.4,2065.7,4.71550126]
[1772040874466,7.33702471,2066.4,2065.8,1.21018491]
[1772040874662,1.20986999,2066.4,2066.0,0.001]
[1772040876670,10.92260288,2066.5,2066.0,0.001]
[1772040876984,0.4523032,2066.4,2066.0,0.001]
[1772040877183,0.002,2066.7,2066.1,5.88442085]
[1772040877484,1.20971644,2066.6,2066.1,8.13992211]
[1772040877687,1.20971644,2066.6,2066.0,0.001]
[1772040879193,7.29109472,2066.6,2066.0,0.001]
[1772040880256,1.20971644,2066.6,2066.0,0.001]
[1772040880565,1.20971644,2066.6,2066.0,5.88542085]
[1772040880883,10.92214009,2066.7,2066.0,5.88542085]
[1772040881069,10.92214009,2066.7,2066.0,7.09548591]
[1772040881590,10.92214009,2066.7,2066.0,5.88542085]
[1772040881791,10.92214009,2066.7,2066.0,8.34442085]
[1772040882190,6.08137828,2066.6,2066.0,2.46]
[1772040882893,1.20977498,2066.5,2066.0,2.46]
[1772040883192,1.20977498,2066.5,2066.0,0.001]
[1772040886098,7.29304033,2066.7,2066.1,2.25550126]
[1772040886268,7.29304033,2066.7,2066.0,4.71550126]
[1772040887289,7.29304033,2066.7,2066.0,0.001]
[1772040888191,0.002,2066.3,2066.0,0.001]
[1772040889301,0.4530859,2066.2,2066.0,0.001]
[1772040889601,6.08337828,2066.3,2065.8,0.001]
[1772040889602,6.53447178,2066.1,2065.8,0.001]